[Event "FRA-ch Teams Top 16-A 2022"]
[Site "Chartres"]
[Date "2022.06.10"]
[Round "2.8"]
[White "Alexieva, Silvia"]
[Black "Loiseau, Quentin"]
[Result "1/2-1/2"]
[ECO "A45"]
[WhiteElo "2219"]
[BlackElo "2445"]
[Annotator "TA"]
[PlyCount "60"]
[EventDate "2022.06.09"]
[EventType "team-tourn"]
[EventCountry "FRA"]
[SourceTitle "playchess.com"]
[Source "ChessBase"]
[SourceQuality "1"]
[TimeControl "40/5400+30:1800+30"]

{[%evp 9,60,-5,0,-9,0,-9,0,-18,-19,-16,0,-15,-11,-19,0,0,0,0,0,0,4,6,12,20,15,13,7,16,7,0,2,2,14,2,14,0,10,-6,0,0,0,0,0,-8,0,0,0,0,0,0,54,54,33]} 1. d4 {[%emt 0:00:03]} Nf6 {[%emt 0:00:16]} 2. Bf4 {[%emt 0:01:21]} g6 {[%emt 0:00:29]} 3. Nc3 {[%emt 0:04:38]} d5 {[%emt 0:00:32]} 4. e3 {[%emt 0:01:55]} Bg7 {[%emt 0:00:59]} 5. h4 {[%emt 0:00:06]} h5 {[%emt 0:00:23]} 6. Be2 {[%emt 0:02:32] A45: Trompowsky Attack.} O-O {[%emt 0:04:56][%cal Oc7c5]} 7. Nf3 {[%emt 0:03:00]} c5 {[%emt 0:02:13]} 8. Ne5 {[%emt 0:05:36] The position is equal.} Nc6 {[%emt 0:02:21]} 9. Qd2 {[%emt 0:05:45]} Qa5 {[%emt 0:08:20] [#]} 10. O-O $146 {[%emt 0:05:07]} ({Predecessor:} 10. Nxc6 bxc6 11. Be5 Bf5 12. O-O Nd7 13. Bxg7 Kxg7 14. Bd3 Be6 15. a3 c4 16. Be2 {½-½ (39) Buksa,N (2401)-Abdumalik,Z (2491) Warsaw 2021}) 10... Bf5 {[%emt 0:06:00]} 11. Rfd1 {[%emt 0:06:11]} (11. Rad1 {keeps more tension.} Rfc8 12. Nxc6 Rxc6 13. Nxd5 Qxd2 14. Nxf6+ Bxf6 15. Rxd2 cxd4 16. exd4 Rxc2 17. Rxc2 Bxc2 18. Bf3) 11... Rfd8 {[%emt 0:16:02]} 12. Nxc6 {[%emt 0:10:52]} bxc6 {[%emt 0:00:38]} 13. Nxd5 {[%emt 0:03:18]} Qxd2 {[%emt 0:01:06]} 14. Nxf6+ {[%emt 0:00:04]} Bxf6 {[%emt 0:00:39]} 15. Rxd2 {[%emt 0:00:04]} cxd4 {[%emt 0:09:05]} 16. exd4 {[%emt 0:00:30]} Rxd4 {[%emt 0:03:15]} 17. Rxd4 {[%emt 0:00:51]} Bxd4 {[%emt 0:00:02]} 18. c3 {[%emt 0:00:07]} Bf6 {[%emt 0:03:26]} 19. Bf3 {[%emt 0:03:52]} Rc8 {[%emt 0:04:37]} 20. g3 {[%emt 0:01:17]} Be6 {[%emt 0:02:28]} 21. Kg2 {[%emt 0:06:48]} Bd5 {[%emt 0:05:17]} 22. Re1 {[%emt 0:03:34]} e6 {[%emt 0:07:49]} 23. Be5 {[%emt 0:02:19]} Kg7 {[%emt 0:03:44]} 24. b3 {[%emt 0:00:24]} Bxe5 {[%emt 0:00:13]} 25. Rxe5 $11 {[%emt 0:00:04][%mdl 4096] Endgame KRB-KRB} Kf6 {[%emt 0:00:09]} 26. Re2 {[%emt 0:02:12]} Rd8 {[%emt 0:01:22]} 27. Be4 {[%emt 0:00:36]} e5 {[%emt 0:02:04]} 28. Kf1 {[%emt 0:04:00]} Ke6 {[%emt 0:03:34]} 29. Ke1 {[%emt 0:02:33]} Rd6 {[%emt 0:03:30]} ({Black should play} 29... f5 $11 30. Bxd5+ cxd5) 30. Bc2 $1 $14 {[%emt 0:03:55]} Bf3 {[%emt 0:01:53] Weighted Error Value: White=0.05 (flawless) /Black=0.08 (flawless)} 1/2-1/2

[Event "FRA-ch Teams Top 16-A 2022"]
[Site "Chartres"]
[Date "2022.06.10"]
[Round "2.9"]
[White "Postny, Evgeny"]
[Black "Ragger, Markus"]
[Result "0-1"]
[ECO "D94"]
[WhiteElo "2563"]
[BlackElo "2636"]
[Annotator "TA"]
[PlyCount "74"]
[EventDate "2022.06.09"]
[EventType "team-tourn"]
[EventCountry "FRA"]
[SourceTitle "playchess.com"]
[Source "ChessBase"]
[SourceQuality "1"]
[TimeControl "40/5400+30:1800+30"]

{[%evp 11,74,0,0,-15,-8,-3,-6,-20,-17,-34,-27,-34,-26,-19,-17,-20,-21,-37,-32,-52,-12,-38,-47,-44,-51,-80,-91,-73,-66,-85,-79,-90,-70,-104,-45,-52,-53,-97,-98,-120,-50,-129,-111,-138,-134,-130,-128,-268,-266,-269,-266,-320,-323,-432,-418,-431,-427,-545,-536,-758,-799,-790,-776,-881,-809]} 1. d4 {[%emt 0:00:04]} Nf6 {[%emt 0:01:24]} 2. c4 {[%emt 0:00:07]} g6 {[%emt 0:00:06]} 3. Nc3 {[%emt 0:00:13]} d5 {[%emt 0:00:06]} 4. Nf3 {[%emt 0:00:23]} Bg7 {[%emt 0:00:04]} 5. e3 {[%emt 0:00:09]} O-O {[%emt 0:00:16]} 6. Bd2 {[%emt 0:00:15]} e6 $1 {[%emt 0:01:19][%mdl 4] now scores much better than the old 6...c5.} 7. Qc2 {[%emt 0:12:29] D94: Grünfeld: 4 Nf3 Bg7 5 e3.} Nbd7 {[%emt 0:01:51]} 8. Rd1 {[%emt 0:09:07] [#]} Qe7 $146 {[%emt 0:10:13]} (8... c5 {feels hotter.} 9. dxc5 Nxc5 10. cxd5 exd5 11. Nxd5 Qxd5 12. Bb4 Qxa2 13. Bxc5 Bf5) ({Predecessor:} 8... c6 9. b3 Qe7 10. Bd3 e5 11. dxe5 Nxe5 12. Nxe5 Qxe5 13. Ne2 dxc4 14. Qxc4 Be6 {0-1 (64) Grob,H-Koltanowski,G Roses 1935}) 9. cxd5 {[%emt 0:13:40] The position is equal.} exd5 {[%emt 0:00:16]} 10. Be2 {[%emt 0:00:59]} c6 {[%emt 0:05:03]} 11. O-O {[%emt 0:00:24]} Ne4 {[%emt 0:04:14][%cal Bf6e4,Be4d6,Bd6f5][%mdl 32]} 12. Bc1 {[%emt 0:00:59]} Re8 {[%emt 0:16:32]} 13. Nd2 {[%emt 0:05:17]} Ndf6 {[%emt 0:05:45]} 14. Bd3 {[%emt 0:07:15]} Bf5 {[%emt 0:02:55]} 15. Rde1 {[%emt 0:00:18]} Rad8 {[%emt 0:13:15]} 16. Nb3 {[%emt 0:08:37]} Nd6 {[%emt 0:02:01]} 17. Re2 {[%emt 0:06:43]} h5 {[%emt 0:06:53]} 18. f3 {[%emt 0:04:49][%cal Oe3e4]} Bxd3 {[%emt 0:01:48]} 19. Qxd3 {[%emt 0:00:06]} Nf5 {[%emt 0:01:15]} 20. Rfe1 {[%emt 0:01:51]} Qc7 {[%emt 0:00:23]} 21. Nd2 {[%emt 0:03:35]} a6 {[%emt 0:01:53]} 22. Nf1 {[%emt 0:02:43]} c5 {[%emt 0:05:03]} (22... h4 $17 23. Nd2 h3) 23. dxc5 $1 $15 {[%emt 0:00:53]} Qxc5 {[%emt 0:00:02]} 24. Kh1 {[%emt 0:01:03]} b5 {[%emt 0:01:15][%cal Bb7b5,Bb5b4][%mdl 32] 0x0.002ac30a0d29dp-1022s more active pieces.} 25. a3 {[%emt 0:04:59]} Qc4 {[%emt 0:06:02]} ({Better is} 25... h4 $17 {[%cal Oh4h3] Hoping for ...h3!} 26. Rc2 Qe7) 26. Qxc4 {[%emt 0:04:26]} ({White should try} 26. Qd1 $15) 26... dxc4 $17 {[%emt 0:00:16]} ({Weaker is} 26... bxc4 27. Rd1 $15) 27. Rd2 {[%emt 0:01:01]} Rxd2 {[%emt 0:01:29]} 28. Bxd2 {[%emt 0:00:04]} Nd7 {[%emt 0:00:17]} 29. a4 {[%emt 0:06:50] This move loses the game for White.} (29. Rb1 $17) 29... b4 $19 {[%emt 0:01:24]} 30. Nd5 {[%emt 0:00:06] [#]} a5 {[%emt 0:00:04]} ({Stronger than} 30... Bxb2 31. Bxb4 Rb8 32. e4 $15) 31. e4 {[%emt 0:00:19] [#]} Ne7 {[%emt 0:02:00] White must now prevent ...Nxd5.} ({Not} 31... Bxb2 32. exf5 Rxe1 33. Bxe1 $11) 32. Nxe7+ {[%emt 0:05:20]} Rxe7 {[%emt 0:00:01]} 33. Bg5 {[%emt 0:01:02]} Re8 {[%emt 0:01:44] Black is clearly winning.} 34. Rd1 {[%emt 0:00:18]} Nb6 {[%emt 0:01:17]} 35. Bd8 {[%emt 0:00:51]} Nxa4 {[%emt 0:00:53]} 36. Bxa5 {[%emt 0:00:05]} Nxb2 {[%emt 0:01:04]} 37. Rc1 {[%emt 0:00:17]} Rb8 {[%emt 0:01:25] Weighted Error Value: White=0.38/Black=0.07 (flawless)} 0-1

[Event "FRA-ch Teams Top 16-A 2022"]
[Site "Chartres"]
[Date "2022.06.10"]
[Round "2.10"]
[White "Fressinet, Laurent"]
[Black "Ganguly, Surya Shekhar"]
[Result "1/2-1/2"]
[ECO "D41"]
[WhiteElo "2630"]
[BlackElo "2616"]
[Annotator "TA"]
[PlyCount "44"]
[EventDate "2022.06.09"]
[EventType "team-tourn"]
[EventCountry "FRA"]
[SourceTitle "playchess.com"]
[Source "ChessBase"]
[SourceQuality "1"]
[TimeControl "40/5400+30:1800+30"]

{[%evp 26,44,10,10,10,0,15,6,6,8,8,0,1,-10,0,0,0,0,0,0,21]} 1. d4 {[%emt 0:00:04]} Nf6 {[%emt 0:00:28]} 2. Nf3 {[%emt 0:00:10]} d5 {[%emt 0:00:17]} 3. c4 {[%emt 0:00:06]} e6 {[%emt 0:00:06]} 4. Nc3 {[%emt 0:00:05]} c5 {[%emt 0:00:08]} 5. cxd5 {[%emt 0:00:19]} Nxd5 {[%emt 0:00:06]} 6. e4 {[%emt 0:00:11]} Nxc3 {[%emt 0:00:05]} 7. bxc3 {[%emt 0:00:03]} cxd4 {[%emt 0:00:08]} 8. cxd4 {[%emt 0:00:03]} Bb4+ {[%emt 0:00:06]} 9. Bd2 {[%emt 0:00:05]} Bxd2+ {[%emt 0:00:05]} 10. Qxd2 {[%emt 0:00:06]} O-O {[%emt 0:00:08]} 11. Bc4 {[%emt 0:00:34]} Nd7 {[%emt 0:00:12]} 12. O-O {[%emt 0:00:30]} b6 {[%emt 0:00:02]} 13. Rad1 {[%emt 0:01:14]} Bb7 {[%emt 0:00:09]} 14. Rfe1 {[%emt 0:00:06] The position is equal.} Rc8 {[%emt 0:00:24] D41: Queen's Gambit Declined: Semi-Tarrasch with 5 cxd5.} 15. Bb3 {[%emt 0:00:06]} h6 {[%emt 0:00:05]} 16. h3 {[%emt 0:00:44]} Nf6 {[%emt 0:00:31]} 17. Qf4 {[%emt 0:03:04][%cal Od4d5]} Qc7 {[%emt 0:01:45]} 18. Ne5 {[%emt 0:07:08][%cal Bf3e5,Be5d3,Bd3f4][%mdl 32]} Nd7 {[%emt 0:00:32]} 19. Nd3 {[%emt 0:09:27]} Qxf4 {[%emt 0:05:33]} 20. Nxf4 {[%emt 0:03:45]} Rfe8 {[%emt 0:00:33]} 21. f3 {[%emt 0:04:43] [#]} b5 $146 {[%emt 0:04:48]} ({Predecessor:} 21... Kf8 22. Kf2 b5 23. Rc1 Nb6 24. Ke3 a5 25. a3 Ke7 26. Nd3 Nd7 27. h4 g5 {½-½ (38) Yuan,Q (2373)-Grigoriants,S (2542) Chess.com INT 2020}) 22. a4 {[%emt 0:19:32]} bxa4 {[%emt 0:03:48] A balanced but interesting game.  Weighted Error Value: White=0.05 (flawless) /Black=0.02 (flawless)} 1/2-1/2

[Event "FRA-ch Teams Top 16-A 2022"]
[Site "Chartres"]
[Date "2022.06.10"]
[Round "2.11"]
[White "Visakh N R"]
[Black "Rodshtein, Maxim"]
[Result "1/2-1/2"]
[ECO "D85"]
[WhiteElo "2506"]
[BlackElo "2588"]
[Annotator "TA"]
[PlyCount "85"]
[EventDate "2022.06.09"]
[EventType "team-tourn"]
[EventCountry "FRA"]
[SourceTitle "playchess.com"]
[Source "ChessBase"]
[SourceQuality "1"]
[TimeControl "40/5400+30:1800+30"]

{[%evp 15,85,-5,0,-22,-12,-6,0,0,0,0,0,0,0,0,0,-3,0,0,0,-6,22,-73,-70,-81,-30,-119,-118,-148,-150,-147,-158,-158,-151,-158,-129,-129,-127,-176,-175,-171,-175,-210,-202,-207,-207,-207,-200,-200,-192,-187,-187,-178,-187,-187,-171,-195,-195,-175,-9,-160,-114,-114,-13,-13,-13,-13,-9,-9,-9,-9,-9,-9]} 1. d4 {[%emt 0:00:04]} Nf6 {[%emt 0:02:17]} 2. c4 {[%emt 0:00:07]} g6 {[%emt 0:00:16]} 3. Nc3 {[%emt 0:00:28]} d5 {[%emt 0:00:13]} 4. cxd5 {[%emt 0:00:41]} Nxd5 {[%emt 0:00:06]} 5. e4 {[%emt 0:00:06]} Nxc3 {[%emt 0:00:05]} 6. bxc3 {[%emt 0:00:06]} Bg7 {[%emt 0:00:05]} 7. Nf3 {[%emt 0:00:07]} c5 {[%emt 0:00:29]} 8. Bb5+ {[%emt 0:07:06]} Nc6 $1 {[%emt 0:03:09] The main line 8...Nc6 scores better than 8...Bd7.} 9. d5 {[%emt 0:15:58] D85: Exchange Grünfeld: Unusual White 7th moves and lines with 7 Nf3.} Qa5 {[%emt 0:11:34]} 10. Rb1 {[%emt 0:03:13]} Bxc3+ {[%emt 0:12:34]} 11. Bd2 $1 {[%emt 0:00:07]} a6 {[%emt 0:00:11]} 12. Bxc6+ {[%emt 0:03:20]} bxc6 {[%emt 0:00:07]} 13. dxc6 {[%emt 0:00:04]} Be6 {[%emt 0:02:14]} 14. Rc1 {[%emt 0:02:47]} Bb4 {[%emt 0:05:11] This bishop pair is nice.} 15. O-O $132 {[%emt 0:03:36][%mdl 2048] White is not keeping still} O-O {[%emt 0:08:32] [#]} 16. Bxb4 $146 {[%emt 0:23:14]} ({Predecessor:} 16. Bf4 Rfc8 17. c7 Qxa2 18. Ra1 Qb3 19. Qc1 f6 20. Rb1 Qd3 21. e5 a5 22. Rd1 {½-½ (33) Tarasov,A-Kudryavtsev,Y ICCF email 2009}) 16... cxb4 {[%emt 0:01:24]} 17. Qd2 {[%emt 0:08:26]} Rfd8 {[%emt 0:07:10]} 18. Qb2 {[%emt 0:01:30]} (18. Qh6 $11 {keeps the balance.} f6 19. e5 (19. c7 Rdc8 $15)) 18... Rac8 $17 {[%emt 0:04:38]} 19. Rc2 {[%emt 0:02:16]} Rd3 {[%emt 0:11:19]} (19... Rd6 $17) 20. Nd4 {[%emt 0:23:42] [#]} (20. Rfc1 $1 $11) 20... Bxa2 $1 {[%emt 0:23:28][%mdl 512]} 21. Qxa2 {[%emt 0:00:02]} Qxa2 {[%emt 0:00:07]} 22. Rxa2 {[%emt 0:00:04] Strongly threatening Nf3.} Rxd4 {[%emt 0:00:05][%cal Bd3d4,Bd4c4,Bc4c6][%mdl 32]} 23. Rxa6 {[%emt 0:00:03][%mdl 4096] Endgame [#] KRR-KRR} Rc4 $1 {[%emt 0:01:02]} ({And not} 23... Rxe4 24. Rc1 $17) 24. Rb1 {[%emt 0:00:33]} R8xc6 {[%emt 0:00:15]} 25. Rxc6 {[%emt 0:00:25]} Rxc6 {[%emt 0:00:04] KR-KR} 26. f3 {[%emt 0:01:56]} (26. Kf1 $17) 26... Rc4 $19 {[%emt 0:02:28]} 27. Kf2 {[%emt 0:00:58]} h5 {[%emt 0:03:42]} 28. e5 {[%emt 0:02:13]} g5 {[%emt 0:00:58][%cal Bg6g5,Bg5g4][%mdl 32]} 29. Ke3 {[%emt 0:00:26]} Kg7 {[%emt 0:00:34]} 30. Kd3 {[%emt 0:00:31]} Rh4 {[%emt 0:00:20]} 31. Rh1 {[%emt 0:00:45]} Rf4 {[%emt 0:00:37]} 32. Ra1 {[%emt 0:00:42]} g4 {[%emt 0:00:42]} 33. Ke3 {[%emt 0:00:31]} Rc4 {[%emt 0:00:05]} 34. Ra7 {[%emt 0:00:03]} e6 {[%emt 0:00:46]} 35. Rb7 {[%emt 0:00:06]} Kg6 {[%emt 0:00:29]} 36. fxg4 {[%emt 0:01:20]} hxg4 {[%emt 0:00:41]} ({Black should try} 36... Rxg4 $19 37. Kf3 Rc4) 37. Kd3 $2 {[%emt 0:00:29]} (37. g3 $1 $11) 37... Rf4 {[%emt 0:00:27]} ({Better is} 37... Rc3+ 38. Ke4 b3) 38. g3 $17 {[%emt 0:00:44] [#]} Rf3+ {[%emt 0:00:12]} (38... Rf2 $1 $17 {aiming for ...b3.} 39. Rxb4 Kf5) 39. Ke4 $1 $11 {[%emt 0:00:11] The position is equal.} b3 {[%emt 0:00:06]} 40. Rb8 $1 {[%emt 0:00:19]} Rf2 {[%emt 0:01:16] White must now prevent ...b2.} 41. Rxb3 {[%emt 0:30:22]} Rxh2 {[%emt 0:07:48]} 42. Kf4 {[%emt 0:00:00]} Rh5 {[%emt 0:02:31]} 43. Re3 $1 {[%emt 0:00:00] Weighted Error Value: White=0.23 (precise) /Black=0.20 (precise)} 1/2-1/2

[Event "FRA-ch Teams Top 16-A 2022"]
[Site "Chartres"]
[Date "2022.06.10"]
[Round "2.12"]
[White "Bacrot, Etienne"]
[Black "Koch, Jean-Rene"]
[Result "1-0"]
[ECO "C42"]
[WhiteElo "2638"]
[BlackElo "2441"]
[Annotator "TA"]
[PlyCount "101"]
[EventDate "2022.06.09"]
[EventType "team-tourn"]
[EventCountry "FRA"]
[SourceTitle "playchess.com"]
[Source "ChessBase"]
[SourceQuality "1"]
[TimeControl "40/5400+30:1800+30"]

{[%evp 19,101,65,53,51,66,36,68,78,68,65,64,70,64,70,59,63,44,66,85,86,87,88,93,81,84,63,75,92,89,90,88,88,87,82,98,93,89,82,81,83,101,96,129,111,119,110,117,112,121,96,88,78,121,116,162,160,153,159,150,142,125,134,127,150,201,200,183,198,252,251,250,210,210,210,268,268,470,467,560,570,560,487,454,401]} 1. e4 {[%emt 0:11:12]} e5 {[%emt 0:00:08]} 2. Nf3 {[%emt 0:00:06]} Nf6 {[%emt 0:00:05]} 3. Nxe5 {[%emt 0:00:54]} d6 {[%emt 0:00:06]} 4. Nf3 {[%emt 0:00:05]} Nxe4 {[%emt 0:00:06]} 5. d4 {[%emt 0:00:09]} d5 {[%emt 0:00:07]} 6. Bd3 {[%emt 0:00:11]} Nc6 {[%emt 0:00:57]} 7. O-O {[%emt 0:00:19]} Bg4 {[%emt 0:01:04]} 8. c4 {[%emt 0:04:41]} Nf6 {[%emt 0:00:50]} 9. Nc3 {[%emt 0:01:40]} Bxf3 {[%emt 0:02:04]} 10. Qxf3 {[%emt 0:00:20]} Nxd4 {[%emt 0:00:10]} 11. Qh3 {[%emt 0:03:46] C42: Petroff Defence: 3 Nxe5 and unusual White 3rd moves.} dxc4 {[%emt 0:01:35]} 12. Bxc4 {[%emt 0:00:30]} (12. Re1+ Be7 13. Bxc4 Nc2 $11) 12... Be7 {[%emt 0:00:47]} 13. Bg5 $1 {[%emt 0:02:03] This bishop pair is nice. White is slightly better.} O-O {[%emt 0:04:12]} 14. Rfe1 $1 {[%emt 0:02:48]} Qd6 {[%emt 0:43:23] [#]} 15. Rxe7 $1 {[%emt 0:05:30]} Qxe7 {[%emt 0:00:28]} 16. Nd5 $1 {[%emt 0:00:05]} Qe5 {[%emt 0:12:53][%csl LRd5,LRg5]} 17. Bxf6 {[%emt 0:04:30]} gxf6 {[%emt 0:01:23]} 18. Qh6 $1 {[%emt 0:01:14] Really sharp!} Nf3+ {[%emt 0:06:41]} 19. gxf3 {[%emt 0:03:08] White threatens Kh1 and mate.} Qg5+ {[%emt 0:00:03]} 20. Qxg5+ {[%emt 0:00:12]} fxg5 {[%emt 0:00:02] [#]} 21. Re1 $146 {[%emt 0:15:24]} ({Weaker is} 21. Nxc7 Rac8 22. Ne6 Rfe8 $17) ({Predecessor:} 21. b4 Rfd8 22. b5 Rd6 23. Ne3 Rad8 24. Rb1 Rb6 25. a4 Rbd6 26. Bf1 Rf6 27. Rc1 {1-0 (27) Schmielewski,F (2033)-Cook,P (2022) ICCF email 2015}) 21... c6 {[%emt 0:00:45]} 22. Ne7+ {[%emt 0:00:13]} Kg7 {[%emt 0:02:01]} 23. Nf5+ $1 {[%emt 0:01:05]} Kf6 {[%emt 0:01:23]} 24. Nd6 {[%emt 0:00:18] White is much more active.} b6 {[%emt 0:02:37]} 25. Ne4+ {[%emt 0:07:05]} Kg6 {[%emt 0:01:28]} 26. Ng3 {[%emt 0:00:25]} Rfe8 {[%emt 0:09:27]} 27. Bd3+ {[%emt 0:00:41]} Kg7 {[%emt 0:00:25]} 28. Be4 {[%emt 0:07:24]} Rad8 {[%emt 0:00:27]} 29. Nf5+ {[%emt 0:00:07]} Kf6 {[%emt 0:00:50]} 30. Ne3 {[%emt 0:00:50]} Rd2 {[%emt 0:03:43]} 31. Bxc6 {[%emt 0:03:47]} Rc8 {[%emt 0:00:24]} 32. Bd5 {[%emt 0:03:02]} Rc5 {[%emt 0:01:55]} 33. Bb3 {[%emt 0:02:37]} h5 {[%emt 0:00:37] Against Ng4+} 34. Rb1 {[%emt 0:00:50]} Kg6 {[%emt 0:02:05]} 35. Nf1 {[%emt 0:00:41]} Rd3 {[%emt 0:00:41] [#]} 36. Kg2 $1 {[%emt 0:01:19]} g4 {[%emt 0:00:37]} (36... b5 $16) 37. Ne3 $18 {[%emt 0:13:36] aiming for Bc2.} f5 {[%emt 0:00:39]} 38. f4 {[%emt 0:01:10]} Rd4 {[%emt 0:00:48]} 39. Kg3 {[%emt 0:01:09]} h4+ {[%emt 0:01:21]} 40. Kxh4 {[%emt 0:00:07] Threatens to win with Kg3.} Rxf4 {[%emt 0:00:29]} 41. Kg3 {[%emt 0:30:12]} Rd4 {[%emt 0:04:00]} (41... Kg5 $16 {keeps fighting.} 42. Rd1 Rf3+ 43. Kg2 f4) 42. Rd1 {[%emt 0:00:00]} Rxd1 {[%emt 0:01:12]} 43. Bxd1 {[%emt 0:00:00]} ({Don't play} 43. Nxd1 $6 Rc1 $16) 43... Kg5 {[%emt 0:00:43] [#]} (43... Rc1 {is a better defense.} 44. Kf4 Ra1) 44. h4+ $1 {[%emt 0:00:00]} gxh3 {[%emt 0:00:16] Strongly threatening ...f4+.} 45. f4+ {[%emt 0:00:00]} ({Not} 45. Kxh3 f4 46. Nc2 Rd5 $15) 45... Kf6 {[%emt 0:02:04]} 46. Kxh3 {[%emt 0:00:00]} Rc1 {[%emt 0:02:13]} 47. a4 {[%emt 0:00:00]} a6 $2 {[%emt 0:03:55]} (47... Rc5 {was worth a try.} 48. Bc2 b5 49. axb5 Rxb5) 48. Kg3 {[%emt 0:00:00] White is clearly winning.} b5 {[%emt 0:02:07]} 49. axb5 {[%emt 0:00:00]} axb5 {[%emt 0:00:04]} 50. Bc2 {[%emt 0:00:00]} Re1 {[%emt 0:04:30]} 51. Kf3 {[%emt 0:00:00] Weighted Error Value: White=0.02 (flawless) /Black=0.18 (very precise)} 1-0

[Event "FRA-ch Teams Top 16-A 2022"]
[Site "Chartres"]
[Date "2022.06.10"]
[Round "2.13"]
[White "Pucher, Olivier"]
[Black "Naiditsch, Arkadij"]
[Result "0-1"]
[ECO "A27"]
[WhiteElo "2341"]
[BlackElo "2654"]
[Annotator "TA"]
[PlyCount "48"]
[EventDate "2022.06.09"]
[EventType "team-tourn"]
[EventCountry "FRA"]
[SourceTitle "playchess.com"]
[Source "ChessBase"]
[SourceQuality "1"]
[TimeControl "40/5400+30:1800+30"]

{[%evp 18,48,33,31,39,18,5,-33,-31,-52,-58,-99,-92,-145,-158,-153,-137,-193,-180,-186,-190,-182,-194,-227,-225,-224,-218,-217,-221,-222,-218,-218,-203]} 1. c4 {[%emt 0:00:02]} e5 {[%emt 0:03:04]} 2. Nc3 {[%emt 0:00:11]} Nc6 {[%emt 0:02:59]} 3. Nf3 {[%emt 0:00:36]} g6 {[%emt 0:00:40]} 4. d4 {[%emt 0:00:23]} exd4 {[%emt 0:00:08]} 5. Nxd4 {[%emt 0:00:06]} Bg7 {[%emt 0:00:06]} 6. Nxc6 {[%emt 0:00:14]} bxc6 {[%emt 0:00:07]} 7. g3 {[%emt 0:00:10]} Rb8 {[%emt 0:05:58]} 8. Bg2 {[%emt 0:06:28]} Ne7 {[%emt 0:00:10][%cal Bg8e7,Be7f5,Bf5d4][%mdl 32]} 9. O-O {[%emt 0:00:51]} O-O {[%emt 0:00:14]} 10. Qc2 {[%emt 0:09:46]} Nf5 {[%emt 0:05:58] A27: English Opening: Three Knights Variation.} 11. Rd1 {[%emt 0:18:59]} Nd4 {[%emt 0:12:07] [#]} 12. Qa4 $146 {[%emt 0:00:34]} ({Predecessor:} 12. Qd2 c5 13. e3 Ne6 14. b3 Qf6 15. Bb2 d6 16. Rab1 Ng5 17. Nd5 Nf3+ 18. Kh1 Nxd2 19. Nxf6+ Bxf6 20. Rxd2 {0-1 (69) Chmiel,M (2076)-Kaczmarek,A (2179) Maslow Pierwszy 2014}) 12... Qe7 {[%emt 0:19:28] Black is slightly better.} 13. Rd2 {[%emt 0:24:33]} Rb4 {[%emt 0:01:40]} 14. Qxa7 {[%emt 0:06:58]} Rxc4 {[%emt 0:01:26]} 15. Qxc7 {[%emt 0:07:24]} (15. e3 $142 Ne6 16. Rc2) 15... Qc5 $17 {[%emt 0:01:20] aiming for ...Be5. Black is clearly better.} 16. e3 {[%emt 0:07:30]} Nf5 $36 {[%emt 0:22:12][%mdl 2048] Black has strong initiative.} (16... Nb5 17. Qa5 $11) 17. Rxd7 {[%emt 0:13:07]} (17. Qb8 $17 {keeps fighting.}) 17... Be5 $19 {[%emt 0:05:34]} ({Worse is} 17... Bxc3 18. bxc3 Bxd7 19. Qxd7 $11) 18. Qa7 {[%emt 0:00:21] Qxc5 is the strong threat.} Bxd7 {[%emt 0:00:41]} ({Inferior is} 18... Bxc3 19. bxc3 Bxd7 20. Qxd7 $15) 19. Qxd7 {[%emt 0:00:14] [#]} Rb8 $1 {[%emt 0:00:20]} ({And not} 19... Bxc3 20. bxc3 Rxc3 21. Bd2 $11) 20. Bd2 {[%emt 0:01:29]} Rxb2 {[%emt 0:00:57]} 21. Ne4 {[%emt 0:00:31] [#]} Rxe4 {[%emt 0:02:28][%mdl 512] Dancing on a razor blade. Active counter play!} 22. Bxe4 {[%emt 0:00:32] [#]} Rxd2 $1 {[%emt 0:00:12][%mdl 576] Discovered Attack} 23. Qxd2 {[%emt 0:00:28] Strongly threatening Rc1.} Bxa1 {[%emt 0:00:06]} 24. Qd7 {[%emt 0:00:11]} Ne7 {[%emt 0:01:12] Black took control after the opening.  Weighted Error Value: White=0.21 (precise) /Black=0.00 (flawless)} 0-1